Cogmind - Beta 12 @@@ ROGUE MODE // 2023.04.23 @ 12:26:20 Player: Zirov Result: Destroyed by YI-UF0 with YI-UF0's Doublenader Performance ------------- Evolutions (1) 500 Regions Visited (3) 600 Robots Destroyed (48) 240 Value Destroyed (961) 961 Prototype IDs (3) 60 Alien Tech Used (0) 0 Bonus (58) 58 TOTAL SCORE: 2419 Bonus ------- High Alert Combat Kills 58 Cogmind --------- Core Integrity 0/400 Matter 226/300 Energy 100/100 System Corruption 0% Temperature Cool (0) Movement Core (350) Ox6 Location -9/Mines Parts ------- > --- POWER (1) -------- (None) > --- PROPULSION (3) --- (None) > --- UTILITY (2) ------ Large Storage Unit > --- WEAPON (3) ------- Mini Grenade Launcher > --- INVENTORY (15) --- Light Ion Engine Improved Heat Sink Medium Battery (150) High-capacity Matter Pod (37) Weight Redist. System Sensor Array Improved Terrain Scanner Seismic Detector System Shield System Shield Mining Laser Peak State ------------ > --- POWER ------------ Improved Ion Engine > --- PROPULSION ------- Improved Aluminum Leg Improved Aluminum Leg Improved Aluminum Leg > --- UTILITY ---------- Large Storage Unit Improved Terrain Scanner > --- WEAPON ----------- Light Assault Rifle Heavy Assault Rifle Mini Grenade Launcher > --- INVENTORY -------- Light Ion Engine Wheel Improved Heat Sink Medium Battery High-capacity Matter Pod Weight Redist. System Sensor Array Improved Terrain Scanner System Shield System Shield Light Assault Rifle Light Assault Rifle Light Assault Rifle Mini Grenade Launcher [Rating: 19] Favorites ----------- Power Ion Engine Engine Ion Engine Propulsion Light Treads Treads Light Treads Leg Improved Aluminum Leg Wheel Wheel Utility Large Storage Unit Device Improved Heat Sink Storage Large Storage Unit Weapon Light Assault Rifle Energy Gun Heavy EM Pulse Gun Ballistic Gun Light Assault Rifle Launcher Mini Grenade Launcher Build | -11 -10 -9 -9 ------- Run | Jun Mat Mat Min Slots Evolved 2 | . . 2 . Power . | . . . . Propulsion 1 | . . 1 . Utility . | . . . . Weapon 1 | . . 1 . Parts Attached 43 | 7 4 18 14 Power 6 | 1 . 3 2 Engine 6 | 1 . 3 2 Core . | . . . . Reactor . | . . . . Propulsion 11 | 2 . 4 5 Treads 3 | 2 . 1 . Leg 5 | . . 3 2 Wheel 3 | . . . 3 Hover . | . . . . Flight . | . . . . Utility 6 | 1 2 2 1 Device 4 | . 1 2 1 Storage 2 | 1 1 . . Processor . | . . . . Hackware . | . . . . Protection . | . . . . Artifact . | . . . . Weapon 20 | 3 2 9 6 Energy Gun 6 | 1 2 3 . Energy Cannon . | . . . . Ballistic Gun 11 | 2 . 5 4 Ballistic Cannon . | . . . . Launcher 3 | . . 1 2 Special Weapon . | . . . . Impact Weapon . | . . . . Slashing Weapon . | . . . . Piercing Weapon . | . . . . Special Melee Weapon . | . . . . Unidentified Prototypes 1 | . . 1 . Parts Lost 19 | . . 2 17 Power 3 | . . 1 2 Propulsion 7 | . . . 7 Utility 1 | . . . 1 Weapon 8 | . . 1 7 Highest Loss Streak 8 | . . 2 8 To Critical Strikes . | . . . . Average Slot Usage (%) 94 | . 95 96 87 Engine 11 | . 14 11 10 Treads 19 | . 28 25 . Leg 5 | . . 4 14 Wheel 2 | . . . 11 Device 10 | . 10 11 11 Storage 11 | . 14 11 11 Energy Gun 8 | . 10 12 . Ballistic Gun 20 | . 17 20 25 Naked Turns . | . . . . Heaviest Build 35 | 12 32 35 33 Greatest Support 60 | 40 40 60 39 Greatest Overweight (x) 8 | 3 . 2 8 Average Overweight (x) . | . . . . Largest Inventory Capacity 15 | 8 15 15 15 Average Capacity 13 | 7 9 15 15 Most Carried 15 | 2 9 15 15 Average Carried 9 | . 4 13 11 Final Capacity 15 | 8 15 15 15 Final Carried 15 | 2 9 15 11 Class Distribution -------------------- 38% | Mutant 21% | Gunner 20% | Scavenger-Skirmisher 14% | Scavenger-Gunner 3% | Skirmisher Dominant Class ---------------- Mutant | -10/Materials Gunner | -9/Materials Scavenger-Skirmisher | -9/Mines Resources | -11 -10 -9 -9 ----------- Run | Jun Mat Mat Min Matter Collected 806 | 235 105 292 174 Remotely . | . . . . Salvage Created 1371 | . 195 1054 122 Parts 108 | . 15 79 14 Haulers Intercepted 5 | . . 5 . Recyclers Shooed 2 | . . 2 . Parts Field Recycled . | . . . . Retrieved Matter . | . . . . Parts Self-Destructed . | . . . . Prevented . | . . . . Kills | -11 -10 -9 -9 ------- Run | Jun Mat Mat Min Combat Hostiles Destroyed 36 | . 4 24 8 Guns 22 | . 4 16 2 AOE 13 | . . 7 6 Classes Destroyed 9 | . 2 6 1 Worker 3 | . . 3 . Tunneler 1 | . . 1 . Hauler 5 | . . 5 . Mechanic 1 | . . 1 . Watcher 2 | . 1 1 . Swarmer 18 | . . 12 6 Grunt 15 | . 4 10 1 Duelist 1 | . . . 1 Sentry 2 | . . 2 . Best Kill Streak 14 | . 3 14 3 Combat Bots Only 11 | . 2 11 3 Max Kills in Single Turn 4 | . 1 4 3 Gunslinging . | . . . . Exploded 3 | . . 3 3 Melee . | . . . . Uniques/NPCs Destroyed . | . . . . Combat | -11 -10 -9 -9 -------- Run | Jun Mat Mat Min Damage Taken 2324 | . 260 599 1465 Core 494 | . 91 64 339 Absorbed by Shields . | . . . . Core Remaining (%) 81 | 100 63 . . Volleys Fired 106 | . 20 66 20 Largest 3 | . 2 3 3 Hottest 135 | . 40 135 73 Shots Fired 279 | . 40 191 48 Gun 269 | . 40 188 41 Cannon . | . . . . Launcher 10 | . . 3 7 Special . | . . . . Kinetic 190 | . 40 109 41 Thermal 32 | . . 32 . Explosive 10 | . . 3 7 Electromagnetic 47 | . . 47 . Robot Hit Streak 16 | . 12 16 14 Robot Miss Streak 5 | . 5 5 4 Penetration Max . | . . . . Secondary Targets 4 | . . 3 1 Max Gunslinging Chain 1 | . . 1 1 Shots Hit Robots 188 | . 30 124 34 Core Hits 85 | . 14 57 14 Critical Kills . | . . . . Critical Parts Destroyed . | . . . . Critical Strikes 1 | . . 1 . Corrupt 1 | . . 1 . Melee Attacks . | . . . . Impact . | . . . . Slashing . | . . . . Piercing . | . . . . Sneak Attacks . | . . . . Combat Hostiles . | . . . . Follow-up Attacks . | . . . . Damage Inflicted 2770 | . 244 1836 690 Guns 1862 | . 235 1352 275 Cannons . | . . . . Explosions 899 | . . 484 415 Melee . | . . . . Ramming 9 | . 9 . . Kinetic 1119 | . 235 609 275 Thermal 292 | . . 292 . Explosive 690 | . . 275 415 Electromagnetic 660 | . . 660 . Impact . | . . . . Slashing . | . . . . Piercing . | . . . . Highest Corruption . | . . . . Average Corruption . | . . . . Corruption Purged . | . . . . Corruption Blocked . | . . . . Overload Shots . | . . . . Overflow Damage 65 | . . 60 5 Projectiles . | . . . . Explosions 65 | . . 60 5 Melee . | . . . . Knockbacks . | . . . . Impact . | . . . . Kinetic . | . . . . Secondary . | . . . . Self-Inflicted Damage 74 | . . 6 68 Shots 3 | . . 1 2 Rammed 3 | . 3 . . Targets Rammed 3 | . 3 . . Kicked . | . . . . Crushed . | . . . . Highest Temperature 95 | . 25 95 60 Average Temperature 19 | . 12 17 24 Received Heat Transfer 384 | . 147 183 54 Siege Activations . | . . . . Robots Corrupted 1 | . . 1 . Combat Hostiles 1 | . . 1 . Parts Fried 1 | . . 1 . Impact Corruptions . | . . . . Robots Melted . | . . . . Combat Hostiles . | . . . . Parts Melted . | . . . . Heat Transferred 600 | . . 600 . Parts Sabotaged . | . . . . Parts Stolen . | . . . . Parts Stripped . | . . . . Power Chain Reactions 1 | . . 1 . Missiles Intercepted . | . . . . Alert | -11 -10 -9 -9 ------- Run | Jun Mat Mat Min Peak Influence 634 | . 152 634 466 Initial 247 | . . 1 247 Average 231 | . 52 300 373 Maximum Alert Level 2 | . . 2 2 Low Security (%) 53 | 100 100 43 2 Level 1 14 | . . 16 30 Level 2 32 | . . 39 66 Level 3 . | . . . . Level 4 . | . . . . Level 5 . | . . . . High Security . | . . . . Max Security . | . . . . Squads Dispatched 3 | . . 3 . Investigation 2 | . . 2 . Extermination . | . . . . Reinforcement 1 | . . 1 . Assault . | . . . . Garrison . | . . . . Intercept . | . . . . Searches Triggered . | . . . . Construction Impeded . | . . . . Haulers Reinforced . | . . . . Active Scanning Responses . | . . . . Cargo Convoy Interrupts . | . . . . Stealth | -11 -10 -9 -9 --------- Run | Jun Mat Mat Min Distress Signals 3 | . 1 2 . Communications Jammed . | . . . . Distress Signals . | . . . . Times Spotted 54 | . 8 35 11 Peak Tracking Total 7 | . 5 7 3 Tactical Retreats 6 | . 1 3 2 Traps | -11 -10 -9 -9 ------- Run | Jun Mat Mat Min Traps Triggered . | . . . . Indirectly . | . . . . Trap Hack Attempts . | . . . . Triggered . | . . . . Disarmed . | . . . . Reprogrammed . | . . . . Reused . | . . . . Traps Extracted . | . . . . Installed . | . . . . Triggered . | . . . . Machines | -11 -10 -9 -9 ---------- Run | Jun Mat Mat Min Machines Disabled 3 | . . 2 1 Max in Single Turn 2 | . . 2 1 Machines Repaired . | . . . . Machines Sabotaged . | . . . . Overloaded Fab Kills . | . . . . Hacking | -11 -10 -9 -9 --------- Run | Jun Mat Mat Min Machines Accessed 8 | . 4 4 . Terminals 8 | . 4 4 . Fabricators . | . . . . Repair Stations . | . . . . Recycling Units . | . . . . Scanalyzers . | . . . . Garrison Access . | . . . . Total Hacks 28 | . 14 14 . Successful 9 | . 3 6 . Failed 19 | . 11 8 . Catastrophic 3 | . 2 1 . Database Lockouts . | . . . . Manual 8 | . 7 1 . Terminals 28 | . 14 14 . Fabricators . | . . . . Repair Stations . | . . . . Recycling Units . | . . . . Scanalyzers . | . . . . Garrison Access . | . . . . Terminal Hacks 9 | . 3 6 . Robot Analysis 1 | . . 1 . Prototype ID Bank 2 | . 1 1 . Emergency Access Points 1 | . . 1 . Terminal Index 1 | . 1 . . Alert Level 1 | . . 1 . Locate Traps 1 | . . 1 . Hauler Manifests 1 | . 1 . . Zone Layout 1 | . . 1 . Fabricator Hacks . | . . . . Repair Station Hacks . | . . . . Recycling Unit Hacks . | . . . . Scanalyzer . | . . . . Garrison Access Hacks . | . . . . Unauthorized Hacks . | . . . . Terminals . | . . . . Fabricators . | . . . . Repair Stations . | . . . . Recycling Units . | . . . . Scanalyzers . | . . . . Garrison Access . | . . . . Data Cores Recovered . | . . . . Used . | . . . . Hacking Detections 8 | . 4 4 . Full Trace Events 2 | . . 2 . Feedback Events . | . . . . Feedback Blocked . | . . . . Robot Schematics Acquired . | . . . . Robots Built . | . . . . Authchips . | . . . . Time . | . . . . Total Robot Build Rating . | . . . . Part Schematics Acquired . | . . . . Parts Built . | . . . . Authchips . | . . . . Time . | . . . . Total Part Build Rating . | . . . . Parts Repaired . | . . . . Time . | . . . . Parts Recycled . | . . . . Recycled Matter . | . . . . Retrieved Matter . | . . . . Retrieved Components . | . . . . Parts Scanalyzed . | . . . . Part Schematics Acquired . | . . . . Parts Damaged . | . . . . Bothacking | -11 -10 -9 -9 ------------ Run | Jun Mat Mat Min Used RIF Installer . | . . . . Robots Hacked . | . . . . Non-combat . | . . . . Combat . | . . . . Robot Hacks Applied . | . . . . Relay Couplers Released . | . . . . Fabnet Peak Effective % . | . . . . Robots Rewired . | . . . . Allies Hacked . | . . . . Hacks Repelled . | . . . . Allies | -11 -10 -9 -9 -------- Run | Jun Mat Mat Min Total Allies . | . . . . Largest Group . | . . . . Highest-Rated Group . | . . . . Highest-Rated Ally . | . . . . Total Orders . | . . . . Ally Attacks . | . . . . Total Damage . | . . . . Kills . | . . . . Allies Corrupted . | . . . . Allies Melted . | . . . . Intel | -11 -10 -9 -9 ------- Run | Jun Mat Mat Min Robot Analysis Total 1 | . . 1 . Derelict Logs Recovered 1 | . . . 1 Drone Launches . | . . . . Drone Recoveries . | . . . . Exploration | -11 -10 -9 -9 ------------- Run | Jun Mat Mat Min Turns Passed 1811 | 79 535 772 425 Spaces Moved 925 | 42 269 281 333 Core 11 | 10 . . 1 Treads 523 | 32 269 222 . Legs 147 | . . 59 88 Wheels 244 | . . . 244 Hover . | . . . . Flight . | . . . . Fastest Speed 50 | 50 160 120 80 Average Speed 137 | 161 160 152 104 Slowest Speed 450 | 200 160 260 450 Overloaded Moves . | . . . . Propulsion Burnouts . | . . . . Robots Hopped . | . . . . Cave-ins Triggered 1 | . . . 1 Exploration Rate (%) 38 | 3 46 31 74 Regions Visited 3 Branch Regions 1 Pre-discovered Areas . | . . . . Known Exits Taken . | . . . . Unknown Exits Taken 3 | 1 1 1 . Scrap Searched . | . . . . Spaces Dug . | . . . . Terrain Destroyed 80 | . . 24 56 Melee . | . . . . Projectile . | . . . . AOE 80 | . . 24 56 Terrain Rammed . | . . . . Walls Destroyed . | . . . . Machines Disabled . | . . . . Actions | -11 -10 -9 -9 --------- Run | Jun Mat Mat Min Total 1271 | 50 339 506 376 Wait 135 | . 34 94 7 Move 922 | 41 268 280 333 Hop . | . . . . Pick Up 36 | 2 8 24 2 Fast Attach 18 | 6 1 7 4 Attach 10 | . . 3 7 Detach 1 | . . 1 . Swap 15 | 1 3 8 3 Drop 25 | . 2 23 . Fire 106 | . 20 66 20 Melee . | . . . . Ram . | . . . . Kick . | . . . . Crush 3 | . 3 . . Escape Stasis . | . . . . Rewire . | . . . . Trap . | . . . . Miscellaneous . | . . . . Route ------- -11/Junkyard -10/Materials -9/Materials (discovered 2 exits: [*Min x2]) -9/Mines History --------- Turn | Location | Event 20 | -11/Junkyard | Discovered new exit (range 15) 80 | -11/Junkyard | Entered Materials 313 | -10/Materials | Build established: Mutant 545 | -10/Materials | Discovered new exit (range 7) 615 | -10/Materials | Entered another Materials area 615 | -9/Materials | Evolved 2 slots: Propulsion x1, Weapon x1 836 | -9/Materials | Discovered new exit (range 14) 1049 | -9/Materials | Destroyed 11 combat bots 1168 | -9/Materials | Discovered new exit (range 15) 1387 | -9/Materials | Entered Mines 1559 | -9/Mines | Core integrity fell below 50% 1560 | -9/Mines | Crushed by falling debris 1566 | -9/Mines | Learned Materials trap positions 1585 | -9/Mines | Lost 6 parts (1p2n3w) 1807 | -9/Mines | Core integrity fell below 20% 1812 | -9/Mines | Destroyed by YI-UF0 with YI-UF0's Doublenader Last Messages --------------- 01760_ Acquired Mining Laser. 01762_ Acquired Seismic Detector. 01762_ K-01 Serf collects debris. 01762_ U-05 Engineer lays Concrete. 01763_ K-01 Serf collects debris. 01763_ U-05 Engineer lays Concrete. 01767_ K-01 Serf collects debris. 01802_ YI-UF0 mumbles something. 01802_ Lgt. Assault Rifle destroyed. 01804_ YI-UF0 mumbles something. 01804_ Wheel destroyed. 01804_ Lgt. Assault Rifle destroyed. 01804_ Wheel destroyed. 01805_ The unstable cave ceiling collapses. 01808_ Lgt. Assault Rifle destroyed. 01809_ The unstable cave ceiling collapses. 01810_ Lgt. Ion Engine destroyed. 01810_ Imp. Terrain Scanner destroyed. 01811_ YI-UF0 mumbles something. 01811_ The unstable cave ceiling collapses. Map ----- +----------------------------------------------------+ | #?#?# ## # ##?#??#????# ##???## #?? | | ##??# ## # #######??#?## ##??#??## ##?? | | ##?# ## ### # ##????# #####???## ###??? | | ### ## # # ### # ##??## ## ##### ##????? | | # ## # # # ####### # ##?????? | | ##??????? | | # # # ######## ###?#?????? | | #### ## # ## #??????#######???????#?? | | #?# ### # ###????#####???????#????? | | #### # ## # ### # #?????## ###??######??? | | ### #### # # ####???### ##?### #### | | ## # # # ##????# #### # | | # # # # # ########[ ## | | = # | | % # ########### ###? | | ### # #???????# ### ##?? | | ## ! ###?????# ### ##? | | #### % # ?####?## ###?# #? | | ## # =% ## #??######??## #? | | ?#?## ###?######### ## | | #?????# # % ### # | | #?##??????##### # ### ###### | | ???????????? ?### ## #???## | | ?????????? ### % ### ####?## | | ?????????? #??##### | | ?????????? ! @ ###### #?#?????##### | | ?????????? % #???# ###???????#?? | | ?????????? # ###??# ##????????? | | ??????????? ##???#### #?????????? | | ?????????? ####?####### #???????#?? | | ???????????? #???## ####?????#? | | ???????????? #### g ??## #??????? | | ??????????????? ?## = #??????? | | ?????????????? # ??# #* "" #??????? | | ?????????????# ??## """ #??????? | | ?????????????? #= ???# # """ #??????? | | ?????????????? % ???# ### ##?????? | | ???????????????? ???# #?# ######??????? | | ?????????????????? #|! ??## #?####?????#?????? | | ?????????????????????* ???# ###??????????????? | | ??????????????????????? ???# #???#??#?????????? | | ???????????????????????????#??# ##???????????????? | | ?????????????? ????????? ????## #????????????????? | | ?????????????????????????###### #######??????????? | | ???????????????????????#?# #??????????? | | ?????????????????????????# """ """ #??#???????? | | ?????????????????????????# [ """ """ #??????????? | | ???????????????????#?????# """ """ #??????????? | | ?????????????????????????# #??????????? | | ?????????????????????????# ! """ """ #??????????? | +----------------------------------------------------+ Best States ------------- Heat Dissipation 42 Energy Generation 14 Energy Capacity 280 Matter Stores 300 Matter Capacity 300 Sight Range 16 Robot Scan Range 14 Terrain Scan Range 16 Terrain Scan Density 10 Evasion (%) 55 Recoil Reduction 3 Item Schematics ----------------- None Robot Schematics ------------------ None Fabricated ------------ Nothing Alien Tech Used ----------------- None Achievements -------------- None Challenges ------------ None Game ------ Seed GaussArmorPenetrator Manual? 0 Play Time 00:29:55 Cumulative 70.5 hours Start 2023.04.23 @ 11:54:03 End 2023.04.23 @ 12:26:20 Sessions 1 Manual Loads 0 Difficulty Rogue Special Mode None Game No. 72 Rogue 72 Adventurer 0 Explorer 0 Win Type - Total 0 Types 0/0/0/0/0/0/0/0/0 Lore% 27 Gallery% 35 Achievement% 27 Wizard Run 0 Options --------- ASCII 1 Keyboard 0 Movement Numpad Keybinds 0 Fullscreen 1 Font 18/SmallcapsGlow Map View 76x50 Tactical HUD 1 Map Filters NONE Filters NONE Steam 1 RUN: 0bede4e0-a7b9-42a7-8299-4f3d7aa7c800